[Event "MPL 19th IND-ch Teams Women 2022"]
[Site "Jalgaon"]
[Date "2022.04.11"]
[Round "4.8"]
[White "Shah Garvi"]
[Black "Mohota, Nisha"]
[Result "0-1"]
[ECO "B02"]
[WhiteElo "1084"]
[BlackElo "2147"]
[Annotator "RC"]
[PlyCount "94"]
[EventDate "2022.04.10"]
[EventType "team-tourn"]
[EventCountry "IND"]
[SourceTitle "playchess.com"]
[Source "ChessBase"]
[SourceQuality "1"]
[TimeControl "5400+30"]

1. e4 {[%emt 0:00:02]} Nf6 {[%emt 0:00:12]} 2. Nc3 {[%emt 0:00:19]} d5 {[%emt 0:00:17]} 3. e5 {[%emt 0:00:42]} Ne4 {[%emt 0:00:16]} 4. Nxe4 {[%emt 0:01:54]} dxe4 {[%emt 0:00:04]} 5. d4 {[%emt 0:00:27]} exd3 {[%emt 0:00:10]} 6. cxd3 {[%emt 0:00:49]} Nc6 {[%emt 0:00:27]} 7. Bf4 {[%emt 0:01:05]} Qd4 {[%emt 0:02:29]} 8. Qd2 {[%emt 0:04:22]} Nxe5 {[%emt 0:02:48]} 9. Be2 {[%emt 0:06:53]} Bf5 {[%emt 0:02:41]} 10. Bxe5 {[%emt 0:02:42]} Qxe5 {[%emt 0:00:05]} 11. Nf3 {[%emt 0:00:45]} Qd6 {[%emt 0:04:38]} 12. Rc1 {[%emt 0:04:40]} e6 {[%emt 0:02:30]} 13. O-O {[%emt 0:02:58]} O-O-O {[%emt 0:05:11]} 14. Qc3 {[%emt 0:02:11]} c6 {[%emt 0:05:55]} 15. d4 {[%emt 0:05:47]} f6 {[%emt 0:04:56]} 16. Qa5 {[%emt 0:02:54]} Kb8 {[%emt 0:01:03]} 17. Rc4 {[%emt 0:01:40]} Qc7 {[%emt 0:01:13]} 18. Qxc7+ {[%emt 0:09:27]} Kxc7 {[%emt 0:00:06]} 19. Rfc1 {[%emt 0:01:20]} Be4 {[%emt 0:00:25]} 20. a3 {[%emt 0:00:54]} Bd5 {[%emt 0:00:27]} 21. R4c3 {[%emt 0:01:11]} Bd6 {[%emt 0:03:16]} 22. b4 {[%emt 0:01:15]} a6 {[%emt 0:01:09]} 23. g3 {[%emt 0:00:57]} g5 {[%emt 0:01:59]} 24. h3 {[%emt 0:00:26]} Rhg8 {[%emt 0:00:34]} 25. Nd2 {[%emt 0:01:44]} Be7 {[%emt 0:00:30]} 26. Bc4 {[%emt 0:02:16]} f5 {[%emt 0:05:22]} 27. Re1 {[%emt 0:07:32]} Bf6 {[%emt 0:01:40]} 28. Bxd5 {[%emt 0:01:05]} exd5 {[%emt 0:11:15]} 29. Nb3 {[%emt 0:02:20]} g4 {[%emt 0:02:33]} 30. h4 {[%emt 0:02:39]} Rde8 {[%emt 0:03:06]} 31. Rce3 {[%emt 0:00:57]} Rxe3 {[%emt 0:03:05]} 32. Rxe3 {[%emt 0:00:11]} b6 {[%emt 0:02:05]} 33. Kf1 {[%emt 0:03:08]} Kd7 {[%emt 0:00:52]} 34. Ke2 {[%emt 0:01:25]} f4 {[%emt 0:01:10]} 35. gxf4 {[%emt 0:03:09]} Bxh4 {[%emt 0:00:12]} 36. Kf1 {[%emt 0:02:26]} Rf8 {[%emt 0:00:59]} 37. Kg2 {[%emt 0:01:45]} Rxf4 {[%emt 0:01:38]} 38. f3 {[%emt 0:01:01]} h5 {[%emt 0:03:04]} 39. a4 {[%emt 0:00:51]} Rxf3 {[%emt 0:02:15]} 40. Rxf3 {[%emt 0:00:32]} gxf3+ {[%emt 0:00:03]} 41. Kxf3 {[%emt 0:00:06]} Be1 42. a5 {[%emt 0:01:33]} Bxb4 {[%emt 0:01:59]} 43. axb6 {[%emt 0:00:12]} Kc8 {[%emt 0:00:12]} 44. Kg3 {[%emt 0:00:33]} Kb7 {[%emt 0:00:15]} 45. Kh4 {[%emt 0:00:08]} Kxb6 {[%emt 0:00:12]} 46. Kxh5 {[%emt 0:00:04]} Kb5 {[%emt 0:00:19]} 47. Kg4 {[%emt 0:00:22]} Kc4 {[%emt 0:00:09]} 0-1

[Event "MPL 19th IND-ch Teams Women 2022"]
[Site "Jalgaon"]
[Date "2022.04.13"]
[Round "6.1"]
[White "Anjali R. Sagar"]
[Black "Arpita, Mukherjee"]
[Result "0-1"]
[ECO "B90"]
[WhiteElo "1836"]
[BlackElo "2260"]
[Annotator "TA"]
[PlyCount "50"]
[EventDate "2022.04.10"]
[EventType "team-tourn"]
[EventCountry "IND"]
[SourceTitle "playchess.com"]
[Source "ChessBase"]
[SourceQuality "1"]
[TimeControl "5400+30"]

{[%evp 18,50,28,19,29,0,0,0,0,8,2,0,6,0,0,0,6,-28,0,-52,-40,-49,-49,-70,-64,-51,-54,-65,-42,-61,-49,-49,-49,-721,-720]} 1. e4 c5 2. Nf3 d6 3. d4 cxd4 4. Nxd4 Nf6 5. Nc3 a6 6. f3 e5 7. Nb3 Be6 8. Be3 Be7 9. Qd2 h5 10. Be2 Nbd7 {B90: Sicilian Najdorf: Unusual White 6th moves, 6 Be3 Ng4 and 6 Be3 e5.} 11. O-O-O Rc8 12. Kb1 b5 {The position is equal.} 13. Nd5 Nxd5 14. exd5 Bf5 15. Bd3 Bxd3 16. Qxd3 Bg5 {[#]} 17. Rhe1 $146 ({Predecessor:} 17. f4 exf4 18. Bd4 O-O 19. g3 Re8 20. gxf4 Bxf4 21. Rhg1 Be5 22. Qf5 Nf8 23. Qxh5 {½-½ (49) Kurylo,R (2344)-Vekelis,G (2349) ICCF email 2018}) 17... O-O 18. g3 (18. Bxg5 $11 Qxg5 19. g3) 18... Bxe3 $15 19. Rxe3 Nb6 20. Qf5 Nc4 21. Re2 g6 22. Qd3 a5 23. Nd2 a4 24. Nxc4 Rxc4 25. b3 $2 {[%mdl 8192] [#]} (25. Re4 $15) 25... Rd4 {Weighted Error Value: White=0.67/Black=0.06 (flawless)} 0-1

[Event "MPL 19th IND-ch Teams Women 2022"]
[Site "Jalgaon"]
[Date "2022.04.13"]
[Round "6.2"]
[White "Divya Deshmukh"]
[Black "Sagar Siya"]
[Result "1-0"]
[ECO "C27"]
[WhiteElo "2301"]
[BlackElo "1831"]
[Annotator "TA"]
[PlyCount "45"]
[EventDate "2022.04.10"]
[EventType "team-tourn"]
[EventCountry "IND"]
[SourceTitle "playchess.com"]
[Source "ChessBase"]
[SourceQuality "1"]
[TimeControl "5400+30"]

{[%evp 11,45,-14,-14,-106,-108,-112,-87,-169,359,349,356,344,382,375,373,379,479,477,474,474,464,418,416,350,587,464,457,359,628,462,578,426,967,961,1124,1027]} 1. e4 {[%emt 0:00:17]} e5 {[%emt 0:00:08]} 2. Nc3 {[%emt 0:00:08]} Nf6 {[%emt 0:00:19]} 3. Bc4 {[%emt 0:00:12]} Nxe4 {[%emt 0:00:34]} 4. Qh5 {[%emt 0:00:06]} Nd6 {[%emt 0:00:12]} 5. Bb3 {[%emt 0:00:04]} Be7 {[%emt 0:01:13]} 6. Nf3 {[%emt 0:00:11]} Nc6 {[%emt 0:00:56] White should prevent ...g6.} 7. h4 {[%emt 0:01:04] C27: Vienna Game: 2...Nf6 3 Bc4 Nxe4.} (7. Nxe5 $11 g6 8. Qe2) 7... g6 $17 {[%emt 0:02:43]} 8. Qg4 {[%emt 0:01:12]} h5 {[%emt 0:03:16]} 9. Qg3 {[%emt 0:02:51] [#]} (9. Qa4 $17 {keeps fighting.}) 9... Na5 $146 {[%emt 0:04:17][%mdl 8192]} (9... Nf5 $19 {avoids the disaster.} 10. Qh2 O-O) ({Predecessor:} 9... Nf5 10. Qh2 d6 11. d3 Ncd4 12. Nxd4 Nxd4 13. Bd2 Bg4 14. Nd5 c6 15. Nxe7 Qxe7 16. Qg3 O-O-O 17. f3 Be6 18. O-O-O Ne2+ {0-1 (18) Svacina,P (2029)-Cervenka,J (2002) Czech Republic 2003}) 10. Qxe5 $18 {[%emt 0:00:14]} O-O {[%emt 0:03:21]} 11. Qxa5 {[%emt 0:00:23]} Re8 {[%emt 0:00:40]} 12. O-O {[%emt 0:00:15]} b6 {[%emt 0:01:10]} 13. Qe5 {[%emt 0:00:41]} Bxh4 {[%emt 0:01:12]} 14. Qf4 {[%emt 0:00:07]} Bf6 {[%emt 0:01:18]} 15. Nd5 {[%emt 0:00:39]} ({Resist} 15. Qh6 Re6 16. Bxe6 dxe6 $18) 15... Bg7 {[%emt 0:00:53]} 16. d3 {[%emt 0:02:09][%cal Od5c7] [#] Hoping for Nxc7!} Bb7 {[%emt 0:01:14]} 17. Bd2 {[%emt 0:00:47][%cal Od5c7,Bc1d2,Bd2g5,Bg5e7][%mdl 32] Threatens to win with Nxc7!} ({Don't play} 17. Nxc7 Qxc7 18. Bxf7+ Kh8 19. Bxg6 Re6 $18) 17... Rb8 $2 {[%emt 0:04:10]} (17... Bxd5 18. Bxd5 Rc8) 18. Rae1 {[%emt 0:01:28]} Bxd5 {[%emt 0:00:56]} 19. Bxd5 {[%emt 0:00:10]} Rf8 {[%emt 0:00:42]} (19... Qf6 20. d4 Rxe1) 20. Qg3 {[%emt 0:00:14] [#] Strongly threatening Qxg6. White is clearly winning.} Kh8 {[%emt 0:00:41]} 21. Bg5 {[%emt 0:00:11]} Qc8 {[%emt 0:00:56]} (21... Bf6 $142 22. Bf4 Nf5) 22. Nh4 {[%emt 0:00:17]} Kh7 {[%emt 0:02:32]} 23. Be7 {[%emt 0:00:08] Weighted Error Value: White=0.61/Black=0.95} 1-0

[Event "MPL 19th IND-ch Teams Women 2022"]
[Site "Jalgaon"]
[Date "2022.04.13"]
[Round "6.3"]
[White "Falak Joni Naik"]
[Black "Priyanka Nutakki"]
[Result "0-1"]
[ECO "D04"]
[WhiteElo "1329"]
[BlackElo "2301"]
[Annotator "TA"]
[PlyCount "82"]
[EventDate "2022.04.10"]
[EventType "team-tourn"]
[EventCountry "IND"]
[SourceTitle "playchess.com"]
[Source "ChessBase"]
[SourceQuality "1"]
[TimeControl "5400+30"]

{[%evp 9,82,-28,-18,-27,-22,-24,-14,-23,-20,-23,-30,-74,-67,-73,-48,-60,-60,-59,-47,-56,-17,-50,-35,-40,-29,-32,0,0,0,-24,-25,-38,-35,-195,-185,-220,-214,-229,-220,-181,-87,-200,-209,-206,-207,-564,-586,-571,-565,-760,-733,-731,-54,-774,-779,-772,-762,-768,-755,-739,-712,-760,-733,-1010,-1020,-1441,-1419,-1979,-2025,-5190,-2858,-2516,-1985,-1377,-1151]} 1. d4 {[%emt 0:00:17]} d5 {[%emt 0:00:42]} 2. Nf3 {[%emt 0:00:06]} Nf6 {[%emt 0:00:16]} 3. e3 {[%emt 0:00:06]} c5 {[%emt 0:01:08]} 4. b3 {[%emt 0:00:05]} Nc6 {[%emt 0:00:07]} 5. Bd3 {[%emt 0:00:07]} Bg4 {[%emt 0:01:00] Black wants to play ...cxd4.} 6. Bb2 {[%emt 0:00:43] D04: Colle System.} e6 $1 {[%emt 0:00:25] The main line 6...e6 scores better than 6...cxd4.} 7. O-O {[%emt 0:00:12]} cxd4 {[%emt 0:00:09]} 8. exd4 {[%emt 0:00:08] The position is equal.} Bd6 {[%emt 0:00:09]} 9. Re1 {[%emt 0:00:43]} O-O {[%emt 0:00:16]} 10. Nbd2 {[%emt 0:00:36] [#]} Nb4 $1 {[%emt 0:02:46]} 11. Nf1 {[%emt 0:02:15]} Rc8 {[%emt 0:02:43]} 12. c3 $1 {[%emt 0:00:17]} Nxd3 {[%emt 0:00:07]} 13. Qxd3 {[%emt 0:00:03]} Bf5 {[%emt 0:04:27] [#]} (13... Ne4 {seems wilder.} 14. N3d2 Bf5 15. Nxe4 Bxe4 16. Rxe4 dxe4 17. Qxe4 b5) 14. Qe2 $146 {[%emt 0:04:37]} ({Predecessor:} 14. Qb5 Qc7 15. Ne5 a6 16. Qe2 Ne4 17. Rac1 Bxe5 18. dxe5 Qa5 19. a3 Qb6 20. b4 {0-1 (57) Czerniak,M-Graf Stevenson,S La Plata 1944}) 14... h6 {[%emt 0:00:21]} (14... Ne4 {keeps more tension.} 15. c4 Bg4 16. Qd3 Qf6) 15. N1d2 {[%emt 0:02:02]} Qe7 {[%emt 0:02:09]} 16. c4 {[%emt 0:00:46]} dxc4 {[%emt 0:04:08]} 17. bxc4 {[%emt 0:01:35]} Ba3 {[%emt 0:00:53]} 18. Bxa3 {[%emt 0:00:40]} Qxa3 {[%emt 0:00:03]} 19. Nb3 {[%emt 0:00:19]} a5 {[%emt 0:03:54][%cal Ba7a5,Ba5a4][%mdl 32]} 20. Ne5 {[%emt 0:05:36]} Rfd8 {[%emt 0:04:11]} 21. c5 $2 {[%emt 0:01:11]} ({White should try} 21. Qe3 $15) 21... a4 $19 {[%emt 0:00:45]} 22. Na5 {[%emt 0:05:58]} Qb4 {[%emt 0:02:08]} ({Inferior is} 22... Rxd4 23. Nxb7 Ne4 24. c6 $17) 23. Nac4 {[%emt 0:03:36]} Rxd4 {[%emt 0:01:00]} 24. Nd6 {[%emt 0:01:49]} Rf8 {[%emt 0:05:14]} ({But not} 24... Qxc5 25. Nxc8 Re4 26. Qd2 Rxe5 27. Rec1 $11) (24... Rxc5 $19 {and Black stays clearly on top.} 25. Nxf5 Re4) 25. Nxf5 {[%emt 0:10:42]} (25. Rec1 $17 {was necessary.}) 25... exf5 {[%emt 0:00:08]} 26. Qf3 {[%emt 0:04:33]} Qxc5 {[%emt 0:01:15] White must now prevent ...Re8.} 27. Qxb7 $2 {[%emt 0:00:54]} (27. Qxf5 {is tougher.} Re8 28. Rac1) 27... Rd2 {[%emt 0:01:58]} 28. Qf3 {[%emt 0:03:03]} Ne4 {[%emt 0:00:19]} 29. Nd3 {[%emt 0:00:27] [#]} Rxd3 {[%emt 0:00:08][%mdl 512]} 30. Qxd3 {[%emt 0:02:36]} Qxf2+ {[%emt 0:00:03]} 31. Kh1 {[%emt 0:00:02] [#]} Qxe1+ $1 {[%emt 0:00:09][%mdl 512] Black is clearly winning.} 32. Rxe1 {[%emt 0:00:07]} Nf2+ {[%emt 0:00:02]} 33. Kg1 {[%emt 0:00:01]} Nxd3 {[%emt 0:00:04][%mdl 4096] Endgame KRN-KR} 34. Rd1 {[%emt 0:00:21]} Ne5 {[%emt 0:00:19]} 35. Rd4 {[%emt 0:00:21]} Ra8 {[%emt 0:00:08] Threatens to win with ...a3.} 36. Kf2 {[%emt 0:00:45]} a3 {[%emt 0:00:01]} 37. Kg3 {[%emt 0:00:43]} g5 {[%emt 0:00:07]} 38. Rd5 {[%emt 0:00:27]} f6 {[%emt 0:00:02]} 39. h3 {[%emt 0:00:33]} Rc8 {[%emt 0:00:06]} 40. Rd2 {[%emt 0:00:15]} f4+ {[%emt 0:00:06]} 41. Kf2 {[%emt 0:00:09]} Rb8 {[%emt 0:00:03] Weighted Error Value: White=0.78/Black=0.10 (very precise)} 0-1

[Event "MPL 19th IND-ch Teams Women 2022"]
[Site "Jalgaon"]
[Date "2022.04.13"]
[Round "6.4"]
[White "Priyanka, Kumari"]
[Black "Shah Garvi"]
[Result "1-0"]
[ECO "B70"]
[WhiteElo "1910"]
[BlackElo "1084"]
[Annotator "RC"]
[PlyCount "41"]
[EventDate "2022.04.10"]
[EventType "team-tourn"]
[EventCountry "IND"]
[SourceTitle "playchess.com"]
[Source "ChessBase"]
[SourceQuality "1"]
[TimeControl "5400+30"]

1. e4 {[%emt 0:01:00]} c5 {[%emt 0:00:05]} 2. Nf3 {[%emt 0:00:09]} d6 {[%emt 0:00:06]} 3. d4 {[%emt 0:00:21]} cxd4 {[%emt 0:00:05]} 4. Nxd4 {[%emt 0:00:04]} Nf6 {[%emt 0:00:08]} 5. Nc3 {[%emt 0:00:05]} g6 {[%emt 0:00:08]} 6. Bg5 {[%emt 0:00:55]} Bg7 {[%emt 0:00:10]} 7. Bb5+ {[%emt 0:00:32]} Bd7 {[%emt 0:00:25]} 8. Qe2 {[%emt 0:00:12]} Nc6 {[%emt 0:01:49]} 9. O-O-O {[%emt 0:01:02]} Nxd4 {[%emt 0:09:58]} 10. Rxd4 {[%emt 0:00:15]} Qa5 {[%emt 0:01:06]} 11. Bxf6 {[%emt 0:01:32]} Bxf6 {[%emt 0:01:24]} 12. Bxd7+ {[%emt 0:00:17]} Kxd7 {[%emt 0:00:14]} 13. Rd5 {[%emt 0:00:10]} Qb6 {[%emt 0:04:36]} 14. e5 {[%emt 0:01:22]} Bg5+ {[%emt 0:03:12]} 15. Kb1 {[%emt 0:00:15]} Bh6 {[%emt 0:04:20]} 16. exd6 {[%emt 0:03:49]} e6 {[%emt 0:01:59]} 17. Rb5 {[%emt 0:02:08]} Qc6 {[%emt 0:00:54]} 18. Ne4 {[%emt 0:01:53]} b6 {[%emt 0:11:07]} 19. Rd1 {[%emt 0:00:50]} Bg7 {[%emt 0:01:10]} 20. Qf3 {[%emt 0:01:38]} f5 {[%emt 0:02:07]} 21. Nc5+ {[%emt 0:00:11]} 1-0

[Event "MPL 19th IND-ch Teams Women 2022"]
[Site "Jalgaon"]
[Date "2022.04.13"]
[Round "6.5"]
[White "Niharika Ch"]
[Black "Soumya, Swaminathan"]
[Result "1/2-1/2"]
[ECO "B32"]
[WhiteElo "1992"]
[BlackElo "2360"]
[Annotator "TA"]
[PlyCount "46"]
[EventDate "2022.04.10"]
[EventType "team-tourn"]
[EventCountry "IND"]
[SourceTitle "playchess.com"]
[Source "ChessBase"]
[SourceQuality "1"]
[TimeControl "5400+30"]

{[%evp 25,46,0,0,2,18,13,1,-13,21,22,40,0,3,12,14,0,0,0,16,0,0,0,26]} 1. e4 c5 2. Nf3 Nc6 3. d4 cxd4 4. Nxd4 Qb6 5. Nb3 Nf6 6. Nc3 e6 7. Be3 Qc7 8. a3 a6 9. f4 d6 10. Be2 b5 11. O-O Be7 12. Kh1 Bb7 13. Bf3 O-O 14. Qe1 {B33: Sicilian: Pelikan and Sveshnikov Variations.} Rfe8 15. Qf2 Rac8 16. Rfd1 {[#]} b4 $146 ({Predecessor:} 16... Bf8 17. Rac1 Qb8 18. g3 Ba8 19. Bb6 Nd7 20. Be3 Red8 21. Rd2 a5 22. a4 bxa4 23. Nxa4 {0-1 (63) Mohith,R (1671)-Ghelani,D (1809) Mumbai 2017}) 17. axb4 Nxb4 18. Na5 Ba8 {The position is equal.} (18... d5 $5 {[%cal Rd5e4]} 19. Bb6 (19. Nxb7 Qxb7 20. e5 Ne4 $11) 19... Qb8 $14) 19. Bb6 Qb8 {[%cal Ob4c2]} 20. Ba7 Qc7 {[%cal Ob4c2]} 21. Bb6 Qb8 {[%cal Ob4c2]} 22. Ba7 Qc7 {[%cal Ob4c2]} 23. Bb6 Qb8 {A rather calm draw.  Weighted Error Value: White=0.09 (flawless) /Black=0.07 (flawless)} 1/2-1/2

[Event "MPL 19th IND-ch Teams Women 2022"]
[Site "Jalgaon"]
[Date "2022.04.13"]
[Round "6.6"]
[White "Gomes, Mary Ann"]
[Black "Toshali, V."]
[Result "1-0"]
[ECO "A06"]
[WhiteElo "2361"]
[BlackElo "2126"]
[Annotator "TA"]
[PlyCount "89"]
[EventDate "2022.04.10"]
[EventType "team-tourn"]
[EventCountry "IND"]
[SourceTitle "playchess.com"]
[Source "ChessBase"]
[SourceQuality "1"]
[TimeControl "5400+30"]

{[%evp 19,89,11,10,-35,-28,-26,-43,-39,-46,-42,-42,-44,-47,-58,-54,-58,-45,-45,-56,-43,-47,-65,-60,-66,-53,-54,0,15,17,18,81,82,89,83,88,91,83,89,124,101,131,112,214,214,216,224,320,106,90,52,83,10,11,0,0,0,14,9,33,0,60,65,86,86,86,86,87,89,93,76,29994,29995]} 1. Nf3 {[%emt 0:00:22]} d5 {[%emt 0:00:06]} 2. g3 {[%emt 0:00:11]} Bg4 {[%emt 0:00:02]} 3. Bg2 {[%emt 0:00:08]} Nd7 {[%emt 0:00:04]} 4. c4 {[%emt 0:00:11]} c6 {[%emt 0:00:04]} 5. d3 {[%emt 0:01:12]} e6 {[%emt 0:00:03]} 6. O-O {[%emt 0:00:12]} Ngf6 {[%emt 0:00:02]} 7. b3 {[%emt 0:00:12]} a5 {[%emt 0:00:09]} 8. a3 {[%emt 0:00:09]} Bc5 {[%emt 0:00:07]} 9. Bb2 {[%emt 0:00:16]} Qe7 {[%emt 0:00:19]} 10. Nbd2 {[%emt 0:00:24]} O-O {[%emt 0:00:51]} 11. e4 {[%emt 0:04:07] A12: English Opening: 1...c6 with b3 by White.} dxe4 {[%emt 0:03:16]} 12. dxe4 {[%emt 0:00:06]} e5 {[%emt 0:03:25]} 13. Qc2 {[%emt 0:00:07] Black is slightly better.} Rfd8 {[%emt 0:12:56]} 14. h3 {[%emt 0:08:59]} Bh5 {[%emt 0:00:36]} 15. Nh4 {[%emt 0:01:58] [#]} Ne8 $146 {[%emt 0:06:56]} ({Predecessor:} 15... Nf8 16. Nf5 Qc7 17. g4 Bg6 18. Nf3 N6d7 19. Qc3 Ne6 20. b4 Bxf5 21. exf5 Nd4 {½-½ (32) Korpa,B (2461)-Loetscher,R (2435) Prague 2016}) 16. Nf5 {[%emt 0:06:07]} Qf8 {[%emt 0:08:31]} 17. g4 {[%emt 0:00:08]} Bg6 {[%emt 0:00:03]} 18. Nf3 {[%emt 0:00:11]} f6 $1 {[%emt 0:00:56]} 19. Rfd1 {[%emt 0:00:59]} Nc7 {[%emt 0:02:30]} 20. g5 {[%emt 0:09:28]} Ne6 {[%emt 0:07:07]} 21. gxf6 {[%emt 0:00:08]} gxf6 {[%emt 0:00:09]} 22. Bc1 {[%emt 0:01:24][%cal Bb2c1,Bc1e3,Be3d4][%mdl 32]} Nd4 {[%emt 0:05:16]} (22... Kh8 $15) 23. N5xd4 {[%emt 0:02:51]} exd4 {[%emt 0:00:33]} 24. Nxd4 {[%emt 0:00:21] Ne6 is the strong threat.} Bxd4 {[%emt 0:00:35]} (24... Bh5 $11 25. Rd3 Bxd4 26. Rxd4 Ne5 27. Rxd8 Rxd8) 25. Rxd4 $16 {[%emt 0:00:06]} Nc5 {[%emt 0:00:28]} 26. Be3 {[%emt 0:14:15]} Qe7 {[%emt 0:03:47]} 27. Re1 {[%emt 0:11:45]} Rxd4 {[%emt 0:02:39]} 28. Bxd4 {[%emt 0:00:06]} Ne6 {[%emt 0:00:01]} 29. Be3 {[%emt 0:02:03]} Qxa3 {[%emt 0:00:45]} 30. f4 $1 {[%emt 0:00:05][%cal Bf2f4,Bf4f5][%mdl 32] Threatens to win with f5.} Ng7 {[%emt 0:08:38]} (30... Qb4 $16 {was worth a try.} 31. Rb1 Ng7) 31. f5 $18 {[%emt 0:02:18]} Bh5 {[%emt 0:00:45]} 32. Bd4 {[%emt 0:00:34]} Kf7 {[%emt 0:00:53]} (32... Rf8 {might work better.} 33. Qc3 Qd6) 33. e5 $2 {[%emt 0:00:57]} (33. Qf2 $18) 33... fxe5 $16 {[%emt 0:00:38]} 34. Rxe5 {[%emt 0:04:42]} Re8 $1 {[%emt 0:00:33] Hoping for ...Rxe5.} 35. Rxe8 {[%emt 0:03:41]} (35. Qe4 $16 {Strongly threatening Rxe8.} Qd6 36. c5) 35... Nxe8 $11 {[%emt 0:00:02]} 36. c5 {[%emt 0:08:24]} Qb4 {[%emt 0:02:16]} 37. Qd3 {[%emt 0:00:12]} Qe1+ {[%emt 0:07:21]} 38. Kh2 {[%emt 0:00:51]} Qe2 {[%emt 0:01:11]} 39. Qg3 {[%emt 0:03:03]} Qc2 {[%emt 0:02:20]} (39... Kf8 $11) 40. Qh4 $1 $14 {[%emt 0:06:51]} ({Weaker is} 40. Qg5 Bf3 $17) 40... Bf3 {[%emt 0:02:20][%csl Gf3][%cal Rc2g2]} 41. Qxh7+ {[%emt 0:00:06]} Kf8 {[%emt 0:00:02][%csl Gf3][%cal Rc2g2]} 42. Qh6+ {[%emt 0:00:09]} Kf7 {[%emt 0:00:11][%csl Gf3][%cal Rc2g2] [#]} 43. Qg6+ {[%emt 0:00:09]} Kf8 {[%emt 0:00:19] [#]} 44. Be3 $1 {[%emt 0:01:01] Threatening mate with Bh6+. Chess con chili. &Bianco is more active.} Bxg2 $4 {[%emt 0:05:21][%mdl 8192]} (44... Qe2 $16) 45. Bh6+ {[%emt 0:00:08] Weighted Error Value: White=0.15 (very precise) /Black=0.29 (precise)} 1-0

[Event "MPL 19th IND-ch Teams Women 2022"]
[Site "Jalgaon"]
[Date "2022.04.13"]
[Round "6.7"]
[White "Kotepalli, Sai Nirupama"]
[Black "Karavade, Eesha"]
[Result "0-1"]
[ECO "B50"]
[WhiteElo "1914"]
[BlackElo "2345"]
[Annotator "TA"]
[PlyCount "87"]
[EventDate "2022.04.10"]
[EventType "team-tourn"]
[EventCountry "IND"]
[SourceTitle "playchess.com"]
[Source "ChessBase"]
[SourceQuality "1"]
[TimeControl "5400+30"]

{[%evp 13,87,0,16,-8,-1,-20,-14,-21,0,-9,0,-23,-25,-56,-55,-66,-72,-67,-64,-64,-25,-57,-56,-76,-63,-52,-16,-29,0,0,22,26,59,0,0,7,0,-16,-18,-23,-19,-75,-24,-91,-91,-173,-167,-154,-137,-281,-236,-296,-313,-354,-358,-357,-337,-334,-292,-970,-958,-839,-916,-1165,-1352,-1314,-1308,-1853,-1656,-1799,-1593,-2278,-2226,-6539,-3431,-29991]} 1. e4 {[%emt 0:02:00]} c5 {[%emt 0:00:19]} 2. Nf3 {[%emt 0:00:05]} d6 {[%emt 0:00:06]} 3. d3 {[%emt 0:00:03]} Nc6 {[%emt 0:00:57]} 4. g3 {[%emt 0:00:04]} g6 {[%emt 0:00:26]} 5. Bg2 {[%emt 0:00:10]} Bg7 {[%emt 0:00:09]} 6. O-O {[%emt 0:00:35]} Nf6 {[%emt 0:01:29]} 7. Nbd2 {[%emt 0:02:00] 7.Re1 is becoming the main line.} O-O {[%emt 0:01:19]} 8. Qe2 {[%emt 0:03:30] A05: Réti Opening: 1 Nf3 Nf6.} e5 {[%emt 0:06:18]} 9. c3 {[%emt 0:00:06]} Re8 {[%emt 0:03:56] [#]} 10. a3 $146 {[%emt 0:00:09] The position is equal.} ({Predecessor:} 10. h4 h6 11. Re1 Bg4 12. Nf1 Qd7 13. Kh2 b5 14. Ne3 Be6 15. Nd2 Rab8 16. f4 {½-½ (23) Mikuta,A (2012)-Schmitt,G (1958) Bayern 2019}) 10... d5 {[%emt 0:06:19]} 11. exd5 {[%emt 0:11:52]} Nxd5 {[%emt 0:00:03]} 12. Nc4 {[%emt 0:02:59]} h6 {[%emt 0:13:15]} 13. h4 {[%emt 0:07:27]} Bg4 {[%emt 0:01:58][%cal Bc8g4,Bg4f5,Bf5d3][%mdl 32]} 14. Qc2 {[%emt 0:03:03]} Qd7 {[%emt 0:07:04]} 15. Ne3 {[%emt 0:08:47]} Nxe3 {[%emt 0:06:23] 0x0.0023821a1276dp-1022s more active pieces. The white rooks are badly placed.} 16. Bxe3 {[%emt 0:01:29]} Bf5 {[%emt 0:00:10][%cal Oc5c4] With the idea ...c4!} 17. Qd2 {[%emt 0:05:16]} Qxd3 {[%emt 0:06:37]} 18. Bxh6 {[%emt 0:04:24]} Qxd2 {[%emt 0:03:56]} 19. Bxd2 {[%emt 0:00:02]} Na5 {[%emt 0:00:17] Threatening ...Nb3.} (19... e4 $5 {[%cal Re4f3]} 20. Ng5 Ne5 $15) 20. Be3 {[%emt 0:02:51]} Bd3 {[%emt 0:02:47]} 21. Rfe1 {[%emt 0:00:09]} Nb3 {[%emt 0:07:49]} 22. Rad1 {[%emt 0:01:08]} e4 {[%emt 0:02:26]} 23. Nd2 {[%emt 0:00:52]} (23. Ng5 $1 $14) 23... Nxd2 $11 {[%emt 0:00:32]} 24. Rxd2 {[%emt 0:00:25]} c4 {[%emt 0:00:12]} 25. f4 {[%emt 0:05:58][%cal Of4f5]} f5 {[%emt 0:04:18]} 26. Bh3 {[%emt 0:00:28]} Kf7 {[%emt 0:00:40]} 27. Kf2 {[%emt 0:02:32]} (27. h5 $11) 27... Bf6 {[%emt 0:02:21]} (27... Rh8 $17) 28. Rh1 {[%emt 0:00:44]} (28. h5 $1 $11 {keeps the balance.}) 28... Rh8 {[%emt 0:00:27]} 29. Rh2 {[%emt 0:05:07]} (29. Kg1 $17) 29... b5 $19 {[%emt 0:00:09]} 30. Rh1 {[%emt 0:02:19]} a5 {[%emt 0:00:19][%cal Ob5b4]} 31. Bc5 {[%emt 0:00:41] Against b4. Loses the game.} (31. Bf1 $17) 31... Rhc8 {[%emt 0:00:49]} 32. Be3 {[%emt 0:03:19]} b4 {[%emt 0:05:25]} 33. axb4 {[%emt 0:03:08]} axb4 {[%emt 0:00:03]} 34. Rc1 {[%emt 0:04:35]} bxc3 {[%emt 0:02:22]} 35. bxc3 {[%emt 0:00:02]} Rcb8 {[%emt 0:00:07]} 36. Bd4 $2 {[%emt 0:03:36]} (36. g4) 36... Bxd4+ {[%emt 0:01:04] Black is clearly winning.} 37. cxd4 {[%emt 0:00:02]} Ra3 {[%emt 0:01:04] [#] aiming for ...c3.} 38. h5 {[%emt 0:02:53]} c3 {[%emt 0:02:07][%cal Bc4c3,Bc3c2][%mdl 32]} 39. Rdd1 {[%emt 0:00:19]} Rb2+ {[%emt 0:00:37]} 40. Kg1 {[%emt 0:00:02]} c2 {[%emt 0:00:20]} 41. Re1 {[%emt 0:00:07]} Rb1 {[%emt 0:00:13]} 42. hxg6+ {[%emt 0:00:32]} Kxg6 {[%emt 0:00:09] [#] ( -> ...Raa1)} 43. Kf2 {[%emt 0:00:10]} Raa1 {[%emt 0:00:10]} 44. Ke3 {Weighted Error Value: White=0.82/Black=0.07 (flawless)} 0-1